Cogmind - Beta 11.1 @@@ ROGUE MODE // 2022.05.05 @ 22:47:17 Player: the cat Result: Destroyed by 8R-AWN with 8R-AWN's Boregun Performance ------------- Evolutions (0) 0 Regions Visited (3) 600 Robots Destroyed (7) 35 Value Destroyed (114) 114 Prototype IDs (23) 460 Alien Tech Used (0) 0 Bonus (300) 300 TOTAL SCORE: 1509 Bonus ------- Aligned with FarCom 300 Cogmind --------- Core Integrity 0/250 Matter 232/300 Energy 96/100 System Corruption 0% Temperature Cool (0) Movement Rolling (95) Ox1 Location -10/Exiles Parts ------- > --- POWER (1) -------- (None) > --- PROPULSION (2) --- Wheel Wheel > --- UTILITY (2) ------ Improved Heat Sink Large Storage Unit > --- WEAPON (2) ------- Longsword +1 > --- INVENTORY (15) --- Wheel High-capacity Storage Unit High-capacity Matter Pod (165) Small Laser Small Laser Grenade Launcher Rocket Launcher Mining Laser Peak State ------------ > --- POWER ------------ Light Ion Engine > --- PROPULSION ------- Light Treads Wheel > --- UTILITY ---------- Improved Heat Sink Large Storage Unit > --- WEAPON ----------- Assault Rifle Longsword +1 > --- INVENTORY -------- Light Ion Engine Light Treads Wheel Wheel High-capacity Storage Unit High-capacity Matter Pod Small Laser Small Laser Grenade Launcher Rocket Launcher Mining Laser [Rating: 17] Favorites ----------- Power Light Ion Engine Engine Light Ion Engine Propulsion Light Treads Treads Light Treads Leg Aluminum Leg Wheel Wheel Utility Improved Heat Sink Device Improved Heat Sink Storage Large Storage Unit Weapon Assault Rifle Energy Gun Small Laser Ballistic Gun Assault Rifle Launcher Grenade Launcher Slashing Weapon Longsword +1 Build | -11 -10 -10 -10 ------- Run | Scr Mat Min Exi Slots Evolved . | . . . . Power . | . . . . Propulsion . | . . . . Utility . | . . . . Weapon . | . . . . Parts Attached 15 | . . 6 9 Power 1 | . . . 1 Engine 1 | . . . 1 Core . | . . . . Reactor . | . . . . Propulsion 5 | . . 2 3 Treads 2 | . . 1 1 Leg . | . . . . Wheel 3 | . . 1 2 Hover . | . . . . Flight . | . . . . Utility 5 | . . 2 3 Device 1 | . . 1 . Storage 4 | . . 1 3 Processor . | . . . . Hackware . | . . . . Protection . | . . . . Artifact . | . . . . Weapon 4 | . . 2 2 Energy Gun . | . . . . Energy Cannon . | . . . . Ballistic Gun 1 | . . 1 . Ballistic Cannon . | . . . . Launcher 2 | . . 1 1 Special Weapon . | . . . . Impact Weapon . | . . . . Slashing Weapon 1 | . . . 1 Piercing Weapon . | . . . . Special Melee Weapon . | . . . . Unidentified Prototypes . | . . . . Parts Lost 5 | . . . 5 Power 2 | . . . 2 Propulsion 2 | . . . 2 Utility . | . . . . Weapon 1 | . . . 1 Highest Loss Streak 5 | . . . 5 To Critical Strikes 4 | . . . 4 Average Slot Usage (%) 95 | . 85 94 99 Engine 14 | . 14 14 14 Treads 11 | . . 12 14 Leg 4 | . 28 2 . Wheel 11 | . . 12 13 Device 10 | . . 8 14 Storage 14 | . 14 14 14 Energy Gun 12 | . 14 14 12 Ballistic Gun 13 | . 14 13 13 Naked Turns . | . . . . Heaviest Build 47 | 11 11 27 47 Greatest Support 40 | 20 20 20 40 Greatest Overweight (x) 4 | . . 2 4 Average Overweight (x) 1 | . . . 2 Largest Inventory Capacity 20 | . 8 15 20 Average Capacity 11 | . 8 8 15 Most Carried 14 | . 8 8 14 Average Carried 9 | . 7 7 11 Final Capacity 15 | 8 8 15 15 Final Carried 8 | 6 8 8 8 Class Distribution -------------------- 100% | Mutant Dominant Class ---------------- Mutant | -10/Materials Mutant | -10/Mines Mutant | -10/Exiles Resources | -11 -10 -10 -10 ----------- Run | Scr Mat Min Exi Matter Collected 352 | 187 . 130 35 Remotely . | . . . . Salvage Created 174 | . 57 117 . Parts 10 | . 3 7 . Haulers Intercepted 1 | . 1 . . Recyclers Shooed 1 | . . 1 . Parts Field Recycled . | . . . . Retrieved Matter . | . . . . Parts Self-Destructed . | . . . . Prevented . | . . . . Kills | -11 -10 -10 -10 ------- Run | Scr Mat Min Exi Combat Hostiles Destroyed 7 | . . 5 2 Guns 4 | . . 4 . AOE 3 | . . 1 2 Classes Destroyed 5 | . 1 3 1 Worker 1 | . . 1 . Hauler 1 | . 1 . . Swarmer 3 | . . 3 . Grunt 2 | . . 2 . Assembled 2 | . . . 2 Best Kill Streak 3 | . 1 3 2 Combat Bots Only 3 | . . 3 2 Max Kills in Single Turn 1 | . 1 1 1 Gunslinging . | . . . . Exploded 1 | . . 1 1 Melee . | . . . . Uniques/NPCs Destroyed . | . . . . Combat | -11 -10 -10 -10 -------- Run | Scr Mat Min Exi Damage Taken 896 | . . 255 641 Core 271 | . . 81 190 Absorbed by Shields . | . . . . Core Remaining (%) 100 | 100 . . . Volleys Fired 24 | . 3 17 4 Largest 2 | . 2 2 1 Hottest 60 | . 60 60 30 Shots Fired 42 | . 6 32 4 Gun 37 | . 6 30 1 Cannon . | . . . . Launcher 5 | . . 2 3 Special . | . . . . Kinetic 19 | . 3 15 1 Thermal 18 | . 3 15 . Explosive 5 | . . 2 3 Electromagnetic . | . . . . Robot Hit Streak 7 | . 5 7 . Robot Miss Streak 4 | . 1 4 . Penetration Max . | . . . . Secondary Targets 1 | . . 1 . Max Gunslinging Chain 1 | . . 1 . Shots Hit Robots 42 | . 5 18 19 Core Hits 14 | . 1 8 5 Critical Kills . | . . . . Critical Parts Destroyed 1 | . 1 . . Critical Strikes 1 | . 1 . . Destroy 1 | . 1 . . Melee Attacks 20 | . . . 20 Impact . | . . . . Slashing 20 | . . . 20 Piercing . | . . . . Sneak Attacks . | . . . . Combat Hostiles . | . . . . Follow-up Attacks . | . . . . Damage Inflicted 1351 | . 62 329 960 Guns 289 | . 62 227 . Cannons . | . . . . Explosions 180 | . . 91 89 Melee 871 | . . . 871 Ramming 11 | . . 11 . Kinetic 170 | . 40 130 . Thermal 119 | . 22 97 . Explosive 180 | . . 91 89 Electromagnetic . | . . . . Impact . | . . . . Slashing 871 | . . . 871 Piercing . | . . . . Highest Corruption . | . . . . Average Corruption . | . . . . Corruption Purged . | . . . . Corruption Blocked . | . . . . Overload Shots . | . . . . Overflow Damage 16 | . . . 16 Projectiles . | . . . . Explosions . | . . . . Melee 16 | . . . 16 Knockbacks . | . . . . Impact . | . . . . Kinetic . | . . . . Secondary . | . . . . Self-Inflicted Damage 1 | . . 1 . Shots . | . . . . Rammed 3 | . . 3 . Targets Rammed 3 | . . 3 . Kicked . | . . . . Crushed . | . . . . Highest Temperature 90 | . . 90 . Average Temperature 44 | . . 44 . Received Heat Transfer 120 | . . 120 . Siege Activations . | . . . . Robots Corrupted . | . . . . Combat Hostiles . | . . . . Parts Fried . | . . . . Impact Corruptions . | . . . . Robots Melted . | . . . . Combat Hostiles . | . . . . Parts Melted . | . . . . Heat Transferred 275 | . 50 225 . Parts Sabotaged . | . . . . Parts Stolen . | . . . . Parts Stripped . | . . . . Power Chain Reactions . | . . . . Missiles Intercepted . | . . . . Alert | -11 -10 -10 -10 ------- Run | Scr Mat Min Exi Peak Influence 162 | . 36 162 . Initial 13 | . . 13 . Average 39 | . 15 49 . Maximum Alert Level . | . . . . Low Security (%) 100 | . 100 100 . Level 1 . | . . . . Level 2 . | . . . . Level 3 . | . . . . Level 4 . | . . . . Level 5 . | . . . . High Security . | . . . . Max Security . | . . . . Squads Dispatched . | . . . . Investigation . | . . . . Extermination . | . . . . Reinforcement . | . . . . Assault . | . . . . Garrison . | . . . . Intercept . | . . . . Searches Triggered . | . . . . Construction Impeded . | . . . . Haulers Reinforced . | . . . . Active Scanning Responses . | . . . . Cargo Convoy Interrupts . | . . . . Stealth | -11 -10 -10 -10 --------- Run | Scr Mat Min Exi Distress Signals . | . . . . Communications Jammed . | . . . . Distress Signals . | . . . . Times Spotted 11 | . 3 5 3 Peak Tracking Total 9 | . 2 3 9 Tactical Retreats . | . . . . Traps | -11 -10 -10 -10 ------- Run | Scr Mat Min Exi Traps Triggered . | . . . . Indirectly . | . . . . Trap Hack Attempts . | . . . . Triggered . | . . . . Disarmed . | . . . . Reprogrammed . | . . . . Reused . | . . . . Traps Extracted . | . . . . Installed . | . . . . Triggered . | . . . . Exploded 3 | . . . 3 Machines | -11 -10 -10 -10 ---------- Run | Scr Mat Min Exi Machines Disabled 3 | . . . 3 Max in Single Turn 2 | . . . 2 Machines Sabotaged . | . . . . Garrisons Compromised . | . . . . Overloaded Fab Kills . | . . . . Hacking | -11 -10 -10 -10 --------- Run | Scr Mat Min Exi Machines Accessed 4 | . 2 . 2 Terminals 2 | . 2 . . Fabricators . | . . . . Repair Stations . | . . . . Recycling Units . | . . . . Scanalyzers . | . . . . Garrison Access . | . . . . Total Hacks 6 | . 4 . 2 Successful 5 | . 3 . 2 Failed 1 | . 1 . . Catastrophic . | . . . . Database Lockouts . | . . . . Manual 3 | . 2 . 1 Terminals 4 | . 4 . . Fabricators . | . . . . Repair Stations . | . . . . Recycling Units . | . . . . Scanalyzers . | . . . . Garrison Access . | . . . . Terminal Hacks 5 | . 3 . 2 Record 1 | . . . 1 Part Schematic 1 | . 1 . . Branch Access Points 1 | . 1 . . Locate Traps 1 | . 1 . . EX-Prototype ID Bank 1 | . . . 1 Fabricator Hacks . | . . . . Repair Station Hacks . | . . . . Recycling Unit Hacks . | . . . . Scanalyzer . | . . . . Garrison Access Hacks . | . . . . Unauthorized Hacks . | . . . . Terminals . | . . . . Fabricators . | . . . . Repair Stations . | . . . . Recycling Units . | . . . . Scanalyzers . | . . . . Garrison Access . | . . . . Data Cores Recovered . | . . . . Used . | . . . . Hacking Detections 1 | . 1 . . Full Trace Events . | . . . . Feedback Events . | . . . . Feedback Blocked . | . . . . Robot Schematics Acquired . | . . . . Robots Built . | . . . . Authchips . | . . . . Time . | . . . . Total Robot Build Rating . | . . . . Part Schematics Acquired 1 | . 1 . . Parts Built . | . . . . Authchips . | . . . . Time . | . . . . Total Part Build Rating . | . . . . Parts Repaired . | . . . . Time . | . . . . Parts Recycled . | . . . . Recycled Matter . | . . . . Retrieved Matter . | . . . . Retrieved Components . | . . . . Parts Scanalyzed . | . . . . Part Schematics Acquired . | . . . . Parts Damaged . | . . . . Bothacking | -11 -10 -10 -10 ------------ Run | Scr Mat Min Exi Used RIF Installer . | . . . . Robots Hacked . | . . . . Non-combat . | . . . . Combat . | . . . . Robot Hacks Applied . | . . . . Relay Couplers Released . | . . . . Fabnet Peak Effective % . | . . . . Robots Rewired . | . . . . Allies Hacked . | . . . . Hacks Repelled . | . . . . Allies | -11 -10 -10 -10 -------- Run | Scr Mat Min Exi Total Allies . | . . . . Largest Group . | . . . . Highest-Rated Group . | . . . . Highest-Rated Ally . | . . . . Total Orders . | . . . . Ally Attacks . | . . . . Total Damage . | . . . . Kills . | . . . . Allies Corrupted . | . . . . Allies Melted . | . . . . Intel | -11 -10 -10 -10 ------- Run | Scr Mat Min Exi Robot Analysis Total . | . . . . Derelict Logs Recovered 1 | . . 1 . Drone Launches . | . . . . Drone Recoveries . | . . . . Exploration | -11 -10 -10 -10 ------------- Run | Scr Mat Min Exi Turns Passed 1675 | . 242 595 838 Spaces Moved 1153 | 1 192 301 659 Core . | . . . . Treads 5 | . . 1 4 Legs 233 | 1 192 40 . Wheels 915 | . . 260 655 Hover . | . . . . Flight . | . . . . Fastest Speed 95 | 120 120 95 95 Average Speed 109 | 120 120 99 110 Slowest Speed 240 | 120 120 160 240 Overloaded Moves . | . . . . Propulsion Burnouts . | . . . . Robots Hopped . | . . . . Cave-ins Triggered . | . . . . Exploration Rate (%) 45 | 2 36 73 69 Regions Visited 3 Branch Regions 2 Pre-discovered Areas 1 | . . . 1 Known Exits Taken 1 | . 1 . . Unknown Exits Taken 2 | 1 . 1 . Scrap Searched 1 | . . 1 . Spaces Dug . | . . . . Terrain Destroyed 21 | . . 8 13 Melee . | . . . . Projectile . | . . . . AOE 21 | . . 8 13 Terrain Rammed . | . . . . Walls Destroyed . | . . . . Machines Disabled . | . . . . Actions | -11 -10 -10 -10 --------- Run | Scr Mat Min Exi Total 1504 | . 198 564 742 Wait 272 | . . 231 41 Move 1150 | . 191 300 659 Hop . | . . . . Pick Up 11 | . 3 3 5 Fast Attach 1 | . . 1 . Attach 5 | . . 2 3 Detach . | . . . . Swap 9 | . . 3 6 Drop 9 | . 1 4 4 Fire 24 | . 3 17 4 Melee 20 | . . . 20 Ram 1 | . . 1 . Kick . | . . . . Crush 2 | . . 2 . Escape Stasis . | . . . . Rewire . | . . . . Trap . | . . . . Miscellaneous . | . . . . Route ------- -11/Scrapyard -10/Materials (discovered 2 exits: *Min x2) -10/Mines (discovered 3 exits: [*Mat x2] / *Exi) -10/Exiles History --------- Turn | Location | Event 1 | -11/Scrapyard | Discovered new exit (range 0) 1 | -11/Scrapyard | Entered Materials 6 | -10/Materials | Discovered new exit (range 16) 108 | -10/Materials | Identified exit to Mines 243 | -10/Materials | Entered Mines 318 | -10/Mines | Build established: Mutant 392 | -10/Mines | Discovered new exit (range 5) 513 | -10/Mines | Assembled infested the area 788 | -10/Mines | Discovered new exit (range 8) 795 | -10/Mines | Received a Rocket Launcher from a helpful Derelict 833 | -10/Mines | Discovered new exit (range 5) 838 | -10/Mines | Entered Exiles 871 | -10/Exiles | Met 8R-AWN 890 | -10/Exiles | Met EX-HEX 925 | -10/Exiles | Met EX-BIN 938 | -10/Exiles | Aligned with FarCom system 939 | -10/Exiles | Given EX-Vault access code 967 | -10/Exiles | Opened EX-Vault 995 | -10/Exiles | Warned to stay clear of 0b10 Research branches 1031 | -10/Exiles | Met EX-DEC 1037 | -10/Exiles | Learned location of Zion (-7) 1428 | -10/Exiles | Found Longsword +1 1533 | -10/Exiles | Attacked by the Exiles 1637 | -10/Exiles | Core integrity fell below 50% 1662 | -10/Exiles | Core integrity fell below 20% 1676 | -10/Exiles | Destroyed by 8R-AWN with 8R-AWN's Boregun Last Messages --------------- 01646_ Machine disabled. 01648_ Penetrated by HV Slug. 01650_ HV Slug penetrates Wall. 01650_ Penetrated by HV Slug. 01656_ HV Slug penetrates Earth. 01659_ HV Slug penetrates Wall. 01659_ HV Slug penetrates Machine. 01659_ Penetrated by HV Slug. 01662_ Destroyed Prototype Protection. 01664_ Penetrated by HV Slug. 01668_ Critical hit (Destroy). 01668_ Assault Rifle destroyed. 01668_ Penetrated by HV Slug. 01668_ Critical hit (Destroy). 01668_ Lgt. Treads destroyed. 01669_ Destroyed Prototype Device. 01672_ Penetrated by HV Slug. 01672_ Critical hit (Destroy). 01672_ Lgt. Ion Engine destroyed. 01674_ Penetrated by HV Slug. Map ----- +----------------------------------------------------+ | ?????????????????????????????????????????????????? | | ?????????????????????????????????????????????????? | | ?????????????????????????????????????????????????? | | ?????????????????????????????????????????????????? | | ?????????????????????????????????????????????????? | | ?????????????????????????????????????????????????? | | ?????????????????????????????????????????????????? | | ?????????????????????????????????????????????????? | | ?????????????????????????????????????????????????? | | ?????????????????????????????????????????????????? | | ?????????????????????????????????????????????????? | | ?????????????????????????????????????????????????? | | ?????????????????????????????????????????????????? | | ?????????????????????????????????????????????????? | | ?????????????????????????????????????????????????? | | ?????????????????????????????????????????????????? | | ?????????????????????????????????????????????????? | | ????????????? ???????????????????????????????????? | | ???????????? ??????????????#######?????????????? | | ???????????? ######???????#!!! "#?????????????? | | ???????????? #""#??????# "#?????????????? | | ???????????# ??????# "#?????????????? | | ????????????#" #????## ""#????????????## | | ????????????"" #####" ""#???????????? | | ??????????????# g ##" ""#????????????" | | ???????????????# @ # " #????????????"" | | ?????????????????## #????????????"" | | ??????????????????#### ##???????????"" | | ?????????????????????### ###????????? | | ???????????????########" #??????????" | | ???????????????# !!"""" ##??????????# | | ???????????????#! " ######???### | | ???????????????#! "# ## "#####X# | | ???????????????#! ### # % | | ???????????????# !""" "#;#??# "; % | | ???????????????########## #???#### | | ????????????????????????# #??????### | | ????????????????????????# #????????### * | | ????????????????????????# #??????????## | | ????????????????????????# #???????????## | | ????????????????????????? ?????????????##" | | ????????????????????????? ??????????????#"" | | ????????????????????????? ?????????????##" | | ????????????????????????? ?????????????#"" | | ????????????????????????? ????????????##""" | | ????????????????????????? ????????????#""" | | ??????????????????????????????????????#""" | | ??????????????????????????????????????#"" | | ??????????????????????????????????????#""" | | ??????????????????????????????????????#"" | +----------------------------------------------------+ Best States ------------- Heat Dissipation 39 Energy Generation 10 Energy Capacity 125 Matter Stores 300 Matter Capacity 300 Sight Range 16 Terrain Scan Density 10 Evasion (%) 55 Recoil Reduction 2 Item Schematics ----------------- Huge Storage Unit | -10/Materials | Hacked Robot Schematics ------------------ None Fabricated ------------ Nothing Alien Tech Used ----------------- None Achievements -------------- None Challenges ------------ None Game ------ Seed IonicCloakingShotgun Manual? 0 Play Time 00:12:42 Cumulative 254.5 hours Start 2022.05.05 @ 22:38:48 End 2022.05.05 @ 22:47:17 Sessions 1 Manual Loads 0 Difficulty Rogue Special Mode None Game No. 81 Rogue 64 Adventurer 17 Explorer 0 Win Type - Total 14 Types 8/0/5/1/0/0/0/0/0 Lore% 77 Gallery% 81 Achievement% 70 Wizard Run 0 Options --------- ASCII 0 Keyboard 0 Movement Arrows Keybinds 0 Fullscreen 1 Font 28/Dina Map View 72x54 Tactical HUD 1 Map Filters NONE Filters NONE Steam 1 RUN: a221d9cd-8b0f-4686-8356-a4a254d73161